[Event "Schack-SM 2023: Mastarklassen-elit"]
[Site "Helsingborg Arena, Mellersta Stenbocksgatan 14, Helsingborg, Sweden"]
[Date "2023.07.08"]
[Round "8.4"]
[White "Lokander, Martin"]
[Black "Soderstrom, Adrian"]
[Result "1/2-1/2"]
[TimeControl "90 minutes for 40 moves + 30 minutes for the rest of games + 30 seconds per move from move one."]
[WhiteTitle "IM"]
[BlackTitle "FM"]
[WhiteElo "2444"]
[BlackElo "2311"]

1. d4 {[%clk 01:30:56]} {[%emt 00:00:04]} Nf6 {[%clk 01:28:46]} {[%emt
00:02:05]} 2. Nf3 {[%clk 01:30:56]} {[%emt 00:00:39]} g6 {[%clk 01:27:05]}
{[%emt 00:02:10]} 3. Bg5 {[%clk 01:27:43]} {[%emt 00:03:44]} Bg7 {[%clk
01:27:18]} {[%emt 00:00:17]} 4. Nbd2 {[%clk 01:28:07]} {[%emt 00:00:06]} O-O
{[%clk 01:26:01]} {[%emt 00:01:47]} 5. e4 {[%clk 01:27:55]} {[%emt 00:00:42]}
d5 {[%clk 01:26:16]} {[%emt 00:00:14]} 6. Bxf6 {[%clk 01:22:01]} {[%emt
00:06:25]} Bxf6 {[%clk 01:24:45]} {[%emt 00:02:01]} 7. e5 {[%clk 01:22:18]}
{[%emt 00:00:13]} Bg7 {[%clk 01:25:09]} {[%emt 00:00:06]} 8. Bd3 {[%clk
01:22:18]} {[%emt 00:00:30]} c5 {[%clk 01:23:40]} {[%emt 00:01:59]} 9. c3
{[%clk 01:21:49]} {[%emt 00:01:00]} Nc6 {[%clk 01:20:20]} {[%emt 00:03:49]} 10.
Bb5 {[%clk 01:14:22]} {[%emt 00:07:57]} Qb6 {[%clk 01:14:13]} {[%emt 00:06:37]}
11. Qa4 {[%clk 01:14:09]} {[%emt 00:00:43]} Bd7 {[%clk 01:11:15]} {[%emt
00:03:28]} 12. O-O {[%clk 01:06:00]} {[%emt 00:08:39]} cxd4 {[%clk 01:09:10]}
{[%emt 00:02:35]} 13. cxd4 {[%clk 01:05:50]} {[%emt 00:00:40]} a6 {[%clk
01:08:54]} {[%emt 00:00:45]} 14. Bxc6 {[%clk 01:06:15]} {[%emt 00:00:06]} Bxc6
{[%clk 01:07:33]} {[%emt 00:01:51]} 15. Qa3 {[%clk 01:04:25]} {[%emt 00:02:21]}
e6 {[%clk 01:03:42]} {[%emt 00:04:21]} 16. Rfc1 {[%clk 01:00:24]} {[%emt
00:04:30]} Rfc8 {[%clk 00:59:11]} {[%emt 00:05:01]} 17. Rc2 {[%clk 00:58:54]}
{[%emt 00:02:00]} Bf8 {[%clk 00:57:21]} {[%emt 00:02:20]} 18. Qb3 {[%clk
00:54:29]} {[%emt 00:04:55]} Qxb3 {[%clk 00:57:21]} {[%emt 00:00:29]} 19. Nxb3
{[%clk 00:54:37]} {[%emt 00:00:23]} Bd7 {[%clk 00:51:37]} {[%emt 00:06:14]} 20.
Rac1 {[%clk 00:54:58]} {[%emt 00:00:09]} Rxc2 {[%clk 00:50:33]} {[%emt
00:01:34]} 21. Rxc2 {[%clk 00:55:24]} {[%emt 00:00:04]} Rc8 {[%clk 00:50:58]}
{[%emt 00:00:05]} 22. Rxc8 {[%clk 00:55:51]} {[%emt 00:00:03]} Bxc8 {[%clk
00:51:23]} {[%emt 00:00:04]} 23. Kf1 {[%clk 00:55:56]} {[%emt 00:00:26]} b6
{[%clk 00:50:41]} {[%emt 00:01:13]} 24. a3 {[%clk 00:54:43]} {[%emt 00:01:42]}
Be7 {[%clk 00:47:03]} {[%emt 00:04:08]} 25. Ke2 {[%clk 00:54:03]} {[%emt
00:01:10]} Kf8 {[%clk 00:46:40]} {[%emt 00:00:53]} 26. Nc1 {[%clk 00:53:25]}
{[%emt 00:01:08]} a5 {[%clk 00:44:31]} {[%emt 00:02:39]} 27. Kd2 {[%clk
00:52:10]} {[%emt 00:01:45]} Ba6 {[%clk 00:44:04]} {[%emt 00:00:57]} 28. g3
{[%clk 00:50:27]} {[%emt 00:02:13]} Ke8 {[%clk 00:42:14]} {[%emt 00:02:19]} 29.
h4 {[%clk 00:49:54]} {[%emt 00:01:04]} h5 {[%clk 00:38:00]} {[%emt 00:04:45]}
30. Kc3 {[%clk 00:46:00]} {[%emt 00:04:23]} Kd7 {[%clk 00:35:09]} {[%emt
00:03:20]} 31. Nd3 {[%clk 00:44:16]} {[%emt 00:02:14]} Bc4 {[%clk 00:33:20]}
{[%emt 00:02:20]} 32. Nf4 {[%clk 00:44:07]} {[%emt 00:00:39]} Bf1 {[%clk
00:33:24]} {[%emt 00:00:25]} 33. Nd2 {[%clk 00:44:12]} {[%emt 00:00:26]} Ba6
{[%clk 00:33:39]} {[%emt 00:00:14]} 34. Nf3 {[%clk 00:44:26]} {[%emt 00:00:17]}
Bf1 {[%clk 00:34:07]} {[%emt 00:00:02]} 35. Nd2 {[%clk 00:44:53]} {[%emt
00:00:03]} Ba6 {[%clk 00:34:30]} {[%emt 00:00:07]} 36. Nh3 {[%clk 00:45:19]}
{[%emt 00:00:03]} Be2 {[%clk 00:34:15]} {[%emt 00:00:46]} 37. Ng1 {[%clk
00:41:07]} {[%emt 00:04:42]} Ba6 {[%clk 00:34:32]} {[%emt 00:00:12]} 38. Ndf3
{[%clk 00:40:21]} {[%emt 00:01:17]} Bf1 {[%clk 00:34:46]} {[%emt 00:00:15]} 39.
Kd2 {[%clk 00:40:10]} {[%emt 00:00:42]} Ba6 {[%clk 00:29:07]} {[%emt 00:06:09]}
40. Nh3 {[%clk 00:40:32]} {[%emt 00:00:08]} Ke8 {[%clk 00:28:40]} {[%emt
00:00:57]} 41. Nhg5 {[%clk 00:40:43]} {[%emt 00:00:19]} Kf8 {[%clk 00:28:39]}
{[%emt 00:00:31]} 42. Kc3 {[%clk 00:39:08]} {[%emt 00:02:05]} Be2 {[%clk
00:28:43]} {[%emt 00:00:25]} 43. Kd2 {[%clk 00:39:28]} {[%emt 00:00:12]} Ba6
{[%clk 00:29:10]} {[%emt 00:00:02]} 44. Nh3 {[%clk 00:39:47]} {[%emt 00:00:10]}
Bf1 {[%clk 00:28:53]} {[%emt 00:00:47]} 45. Nf4 {[%clk 00:40:12]} {[%emt
00:00:06]} Ba6 {[%clk 00:29:01]} {[%emt 00:00:22]} 46. Kc3 {[%clk 00:40:20]}
{[%emt 00:00:22]} Ke8 {[%clk 00:29:02]} {[%emt 00:00:29]} 47. Kd2 {[%clk
00:40:28]} {[%emt 00:00:22]} Kf8 {[%clk 00:29:17]} {[%emt 00:00:15]} 48. Ne2
{[%clk 00:40:39]} {[%emt 00:00:18]} Ke8 {[%clk 00:29:30]} {[%emt 00:00:17]} 49.
Nc1 {[%clk 00:39:12]} {[%emt 00:01:58]} Bc4 {[%clk 00:26:26]} {[%emt 00:03:33]}
50. Ke3 {[%clk 00:39:19]} {[%emt 00:00:23]} Kf8 {[%clk 00:25:04]} {[%emt
00:01:53]} 51. Ne2 {[%clk 00:36:58]} {[%emt 00:02:50]} Ba6 {[%clk 00:25:14]}
{[%emt 00:00:20]} 52. Nc3 {[%clk 00:37:08]} {[%emt 00:00:21]} Bc4 {[%clk
00:24:23]} {[%emt 00:01:20]} 53. Na4 {[%clk 00:37:03]} {[%emt 00:00:35]} Bd8
{[%clk 00:24:11]} {[%emt 00:00:42]} 54. Nd2 {[%clk 00:36:59]} {[%emt 00:00:34]}
Bb5 {[%clk 00:24:29]} {[%emt 00:00:13]} 55. Nc3 {[%clk 00:37:18]} {[%emt
00:00:11]} Bc6 {[%clk 00:23:34]} {[%emt 00:01:24]} 56. Nf3 {[%clk 00:37:19]}
{[%emt 00:00:29]} Be7 {[%clk 00:23:37]} {[%emt 00:00:27]} 57. a4 {[%clk
00:36:57]} {[%emt 00:00:52]} Bb4 {[%clk 00:21:51]} {[%emt 00:02:16]} 58. Nb5
{[%clk 00:33:49]} {[%emt 00:03:38]} Kg7 {[%clk 00:15:27]} {[%emt 00:06:54]} 59.
b3 {[%clk 00:34:07]} {[%emt 00:00:13]} Bxb5 {[%clk 00:15:09]} {[%emt 00:00:48]}
60. axb5 {[%clk 00:34:32]} {[%emt 00:00:05]} Kh6 {[%clk 00:13:05]} {[%emt
00:02:33]} 61. Ng5 {[%clk 00:33:31]} {[%emt 00:01:32]} Kg7 {[%clk 00:13:26]}
{[%emt 00:00:09]} 62. Nh3 {[%clk 00:33:40]} {[%emt 00:00:21]} Be1 {[%clk
00:13:19]} {[%emt 00:00:37]} 63. Nf4 {[%clk 00:33:37]} {[%emt 00:00:33]} Bc3
{[%clk 00:12:38]} {[%emt 00:01:10]} 64. Nd3 {[%clk 00:32:33]} {[%emt 00:01:35]}
Kf8 {[%clk 00:10:38]} {[%emt 00:02:30]} 65. Nc1 {[%clk 00:32:23]} {[%emt
00:00:40]} Bb2 {[%clk 00:10:20]} {[%emt 00:00:48]} 66. Ne2 {[%clk 00:32:38]}
{[%emt 00:00:15]} Ke8 {[%clk 00:08:42]} {[%emt 00:02:08]} 67. Kd3 {[%clk
00:31:14]} {[%emt 00:01:54]} Ba3 {[%clk 00:08:55]} {[%emt 00:00:16]} 68. Nf4
{[%clk 00:31:19]} {[%emt 00:00:26]} Bb4 {[%clk 00:08:52]} {[%emt 00:00:33]} 69.
Ke3 {[%clk 00:31:10]} {[%emt 00:00:38]} Kf8 {[%clk 00:07:23]} {[%emt 00:01:59]}
70. Nd3 {[%clk 00:30:58]} {[%emt 00:00:43]} Bc3 {[%clk 00:07:25]} {[%emt
00:00:27]} 71. Nc1 {[%clk 00:31:22]} {[%emt 00:00:06]} Bb2 {[%clk 00:07:48]}
{[%emt 00:00:07]} 72. Ne2 {[%clk 00:31:48]} {[%emt 00:00:04]} Ke8 {[%clk
00:08:10]} {[%emt 00:00:08]} 73. Kd3 {[%clk 00:32:04]} {[%emt 00:00:14]} Ba3
{[%clk 00:08:28]} {[%emt 00:00:13]} 74. Nc3 {[%clk 00:32:15]} {[%emt 00:00:19]}
Kd7 {[%clk 00:08:05]} {[%emt 00:00:52]} 75. Na2 {[%clk 00:31:55]} {[%emt
00:00:50]} Bb2 {[%clk 00:06:52]} {[%emt 00:01:43]} 76. Nc3 {[%clk 00:32:22]}
{[%emt 00:00:04]} Ba3 {[%clk 00:07:19]} {[%emt 00:00:04]} 77. Ne2 {[%clk
00:30:53]} {[%emt 00:01:58]} Ke8 {[%clk 00:06:29]} {[%emt 00:01:19]} 78. Kc2
{[%clk 00:29:58]} {[%emt 00:03:13]} Bb4 {[%clk 00:06:10]} {[%emt 00:00:49]} 79.
Nf4 {[%clk 00:30:13]} {[%emt 00:00:14]} Be7 {[%clk 00:04:56]} {[%emt 00:01:44]}
80. Nd3 {[%clk 00:30:08]} {[%emt 00:00:36]} Kf8 {[%clk 00:02:50]} {[%emt
00:02:36]} 81. Kd2 {[%clk 00:29:24]} {[%emt 00:01:14]} Ke8 {[%clk 00:03:04]}
{[%emt 00:00:16]} 82. Ke3 {[%clk 00:29:02]} {[%emt 00:00:51]} Kf8 {[%clk
00:02:05]} {[%emt 00:01:29]} 83. Nb2 {[%clk 00:29:23]} {[%emt 00:00:10]} Ke8
{[%clk 00:02:15]} {[%emt 00:00:20]} 84. Na4 {[%clk 00:29:47]} {[%emt 00:00:06]}
Bd8 {[%clk 00:02:39]} {[%emt 00:00:06]} 85. Kf3 {[%clk 00:28:15]} {[%emt
00:02:02]} Kd7 {[%clk 00:02:23]} {[%emt 00:00:46]} 86. Kf4 {[%clk 00:25:53]}
{[%emt 00:02:52]} Kc7 {[%clk 00:02:18]} {[%emt 00:00:35]} 87. Nb2 {[%clk
00:26:17]} {[%emt 00:00:06]} Kd7 {[%clk 00:02:30]} {[%emt 00:00:17]} 88. Nd3
{[%clk 00:26:38]} {[%emt 00:00:10]} Be7 {[%clk 00:02:39]} {[%emt 00:00:21]} 89.
Ne1 {[%clk 00:25:43]} {[%emt 00:01:25]} Ke8 {[%clk 00:02:43]} {[%emt 00:00:26]}
90. Nf3 {[%clk 00:25:40]} {[%emt 00:00:33]} Ba3 {[%clk 00:02:08]} {[%emt
00:01:04]} 91. Ke3 {[%clk 00:21:44]} {[%emt 00:04:27]} Bc1+ {[%clk 00:01:39]}
{[%emt 00:00:59]} 92. Kd3 {[%clk 00:21:53]} {[%emt 00:00:21]} Kd7 {[%clk
00:01:40]} {[%emt 00:00:30]} 93. Kc2 {[%clk 00:22:08]} {[%emt 00:00:14]} Ba3
{[%clk 00:01:43]} {[%emt 00:00:27]} 94. Ng5 {[%clk 00:22:10]} {[%emt 00:00:28]}
Ke7 {[%clk 00:01:58]} {[%emt 00:00:15]} 95. Nf3 {[%clk 00:18:27]} {[%emt
00:04:13]} Kd7 {[%clk 00:02:16]} {[%emt 00:00:12]} 96. Ne1 {[%clk 00:18:40]}
{[%emt 00:00:17]} Be7 {[%clk 00:01:36]} {[%emt 00:01:09]} 97. Nd3 {[%clk
00:18:57]} {[%emt 00:00:14]} Ke8 {[%clk 00:01:42]} {[%emt 00:00:23]} 98. Kc3
{[%clk 00:18:57]} {[%emt 00:00:31]} Kf8 {[%clk 00:29:19]} {[%emt 00:02:53]} 99.
Nb2 {[%clk 00:49:09]} {[%emt 00:00:18]} Ke8 {[%clk 00:29:30]} {[%emt 00:00:20]}
100. Na4 {[%clk 00:49:30]} {[%emt 00:00:08]} Bd8 {[%clk 00:29:53]} {[%emt
00:00:06]} 101. b4 {[%clk 00:49:29]} {[%emt 00:00:31]} axb4+ {[%clk 00:29:51]}
{[%emt 00:00:33]} 102. Kxb4 {[%clk 00:49:37]} {[%emt 00:00:22]} Kd7 {[%clk
00:29:41]} {[%emt 00:00:39]} 103. Kc3 {[%clk 00:49:41]} {[%emt 00:00:26]} Kc7
{[%clk 00:29:05]} {[%emt 00:01:06]} 104. Kd3 {[%clk 00:49:56]} {[%emt
00:00:15]} Be7 {[%clk 00:29:30]} {[%emt 00:00:05]} 105. Ke3 {[%clk 00:50:07]}
{[%emt 00:00:20]} Bb4 {[%clk 00:29:21]} {[%emt 00:00:39]} 106. Kf4 {[%clk
00:50:09]} {[%emt 00:00:28]} Bd2+ {[%clk 00:29:41]} {[%emt 00:00:10]} 107. Kf3
{[%clk 00:50:35]} {[%emt 00:00:04]} Ba5 {[%clk 00:29:51]} {[%emt 00:00:19]} 108.
Ke3 {[%clk 00:49:09]} {[%emt 00:01:57]} Bb4 {[%clk 00:30:18]} {[%emt 00:00:04]}
109. Nb2 {[%clk 00:49:15]} {[%emt 00:00:23]} Kd7 {[%clk 00:30:26]} {[%emt
00:00:21]} 110. Nd3 {[%clk 00:49:38]} {[%emt 00:00:08]} Bc3 {[%clk 00:30:44]}
{[%emt 00:00:12]} 111. Nf4 {[%clk 00:49:56]} {[%emt 00:00:12]} Ke7 {[%clk
00:30:35]} {[%emt 00:00:38]} 112. Nh3 {[%clk 00:49:50]} {[%emt 00:00:37]} Bb2
{[%clk 00:30:53]} {[%emt 00:00:13]} 113. Ng1 {[%clk 00:49:55]} {[%emt
00:00:25]} Bc1+ {[%clk 00:30:51]} {[%emt 00:00:31]} 114. Kd3 {[%clk 00:50:12]}
{[%emt 00:00:13]} Ke8 {[%clk 00:30:53]} {[%emt 00:00:27]} 115. Ne2 {[%clk
00:50:32]} {[%emt 00:00:11]} Ba3 {[%clk 00:31:10]} {[%emt 00:00:13]} 116. Nf4
{[%clk 00:50:54]} {[%emt 00:00:08]} Bb4 {[%clk 00:31:19]} {[%emt 00:00:21]} 117.
Ke3 {[%clk 00:51:12]} {[%emt 00:00:11]} Ke7 {[%clk 00:31:38]} {[%emt 00:00:11]}
118. Ng2 {[%clk 00:51:27]} {[%emt 00:00:15]} Bc3 {[%clk 00:31:49]} {[%emt
00:00:19]} 119. Kd3 {[%clk 00:50:27]} {[%emt 00:01:31]} Bb4 {[%clk 00:32:14]}
{[%emt 00:00:05]} 120. Ne3 {[%clk 00:48:06]} {[%emt 00:02:51]} Be1 {[%clk
00:32:07]} {[%emt 00:00:36]} 121. Ke2 {[%clk 00:48:23]} {[%emt 00:00:14]} Bc3
{[%clk 00:32:29]} {[%emt 00:00:07]} 122. Nc2 {[%clk 00:48:50]} {[%emt
00:00:04]} Ke8 {[%clk 00:32:13]} {[%emt 00:00:46]} 123. Kd3 {[%clk 00:49:06]}
{[%emt 00:00:14]} Ba5 {[%clk 00:32:39]} {[%emt 00:00:04]} 124. Ke3 {[%clk
00:46:33]} {[%emt 00:03:02]} Bc3 {[%clk 00:32:04]} {[%emt 00:01:05]} 125. Na3
{[%clk 00:46:34]} {[%emt 00:00:29]} Bb4 {[%clk 00:32:19]} {[%emt 00:00:16]} 126.
Nc2 {[%clk 00:46:58]} {[%emt 00:00:06]} Bc3 {[%clk 00:32:47]} 127. Kd3 {[%clk
00:40:12]} {[%emt 00:07:16]} Ba5 {[%clk 00:33:10]} {[%emt 00:00:07]} 128. Ne3
{[%clk 00:40:22]} {[%emt 00:00:21]} Be1 {[%clk 00:33:28]} {[%emt 00:00:11]} 129.
Nd1 {[%clk 00:40:07]} {[%emt 00:00:46]} Ke7 {[%clk 00:33:43]} {[%emt 00:00:14]}
130. Ke3 {[%clk 00:40:07]} {[%emt 00:00:31]} Bb4 {[%clk 00:33:54]} {[%emt
00:00:19]} 131. Nb2 {[%clk 00:40:29]} {[%emt 00:00:08]} Kd7 {[%clk 00:34:04]}
{[%emt 00:00:20]} 132. Na4 {[%clk 00:40:48]} {[%emt 00:00:11]} Kc7 {[%clk
00:34:07]} {[%emt 00:00:26]} 133. Kd3 {[%clk 00:41:05]} {[%emt 00:00:13]} Be1
{[%clk 00:34:26]} {[%emt 00:00:11]} 134. Ke2 {[%clk 00:41:32]} {[%emt
00:00:04]} Bb4 {[%clk 00:34:49]} {[%emt 00:00:06]} 135. Ke3 {[%clk 00:41:59]}
{[%emt 00:00:04]} Be1 {[%clk 00:34:59]} {[%emt 00:00:20]} 136. Kf3 {[%clk
00:40:07]} {[%emt 00:02:22]} Bb4 {[%clk 00:34:47]} {[%emt 00:00:41]} 1/2-1/2

[Event "Schack-SM 2023: Veteran-SM 65+"]
[Site "Helsingborg Arena, Mellersta Stenbocksgatan 14, Helsingborg, Sweden"]
[Date "2023.07.08"]
[Round "8.2"]
[White "Ivarsson, Torbjorn"]
[Black "Carlsson, Ingvar"]
[Result "1/2-1/2"]
[TimeControl "90 minutes for 40 moves + 30 minutes for the rest of games + 30 seconds per move from move one."]
[WhiteElo "2073"]
[BlackElo "1998"]

1. d4 {[%clk 01:30:49]} {[%emt 00:00:11]} f5 {[%clk 01:30:46]} {[%emt
00:00:15]} 2. Nc3 {[%clk 01:31:07]} {[%emt 00:00:11]} Nf6 {[%clk 01:30:58]}
{[%emt 00:00:18]} 3. Bg5 {[%clk 01:31:20]} {[%emt 00:00:17]} d5 {[%clk
01:30:27]} {[%emt 00:01:02]} 4. Bxf6 {[%clk 01:31:07]} {[%emt 00:00:43]} exf6
{[%clk 01:30:47]} {[%emt 00:00:10]} 5. e3 {[%clk 01:31:10]} {[%emt 00:00:27]}
Be6 {[%clk 01:30:39]} {[%emt 00:00:37]} 6. Bd3 {[%clk 01:31:21]} {[%emt
00:00:19]} Qd7 {[%clk 01:28:53]} {[%emt 00:02:16]} 7. Nge2 {[%clk 01:30:31]}
{[%emt 00:01:20]} g6 {[%clk 01:27:47]} {[%emt 00:01:37]} 8. Nf4 {[%clk
01:29:41]} {[%emt 00:01:19]} Bf7 {[%clk 01:28:03]} {[%emt 00:00:14]} 9. h4
{[%clk 01:29:11]} {[%emt 00:01:01]} h5 {[%clk 01:28:10]} {[%emt 00:00:23]} 10.
a3 {[%clk 01:27:33]} {[%emt 00:02:08]} Nc6 {[%clk 01:21:14]} {[%emt 00:07:26]}
11. Qd2 {[%clk 01:20:23]} {[%emt 00:07:40]} O-O-O {[%clk 01:14:00]} {[%emt
00:07:43]} 12. O-O-O {[%clk 01:16:42]} {[%emt 00:04:11]} Kb8 {[%clk 01:11:49]}
{[%emt 00:02:42]} 13. Kb1 {[%clk 01:16:52]} {[%emt 00:00:20]} Ne7 {[%clk
01:08:59]} {[%emt 00:03:20]} 14. Rc1 {[%clk 01:15:33]} {[%emt 00:01:48]} Nc8
{[%clk 01:08:59]} {[%emt 00:00:31]} 15. Rhd1 {[%clk 01:04:12]} {[%emt
00:11:50]} g5 {[%clk 00:57:27]} {[%emt 00:12:00]} 16. Nfe2 {[%clk 00:55:31]}
{[%emt 00:09:13]} Nd6 {[%clk 00:56:33]} {[%emt 00:01:24]} 17. Rh1 {[%clk
00:51:10]} {[%emt 00:04:51]} Ne4 {[%clk 00:52:15]} {[%emt 00:04:47]} 18. Qe1
{[%clk 00:50:11]} {[%emt 00:01:30]} Re8 {[%clk 00:47:33]} {[%emt 00:05:12]} 19.
Bb5 {[%clk 00:46:50]} {[%emt 00:03:51]} c6 {[%clk 00:47:34]} {[%emt 00:00:30]}
20. Nxe4 {[%clk 00:47:07]} {[%emt 00:00:12]} fxe4 {[%clk 00:44:58]} {[%emt
00:03:06]} 21. Ba4 {[%clk 00:47:19]} {[%emt 00:00:18]} Qc7 {[%clk 00:39:20]}
{[%emt 00:06:07]} 22. Bb3 {[%clk 00:42:48]} {[%emt 00:05:02]} b5 {[%clk
00:38:37]} {[%emt 00:01:13]} 23. Ba2 {[%clk 00:38:37]} {[%emt 00:04:41]} Kb7
{[%clk 00:30:49]} {[%emt 00:08:18]} 24. b4 {[%clk 00:32:27]} {[%emt 00:06:41]}
a5 {[%clk 00:25:42]} {[%emt 00:05:37]} 25. c3 {[%clk 00:32:48]} {[%emt
00:00:09]} Ra8 {[%clk 00:25:55]} {[%emt 00:00:16]} 26. Bb3 {[%clk 00:32:40]}
{[%emt 00:00:38]} axb4 {[%clk 00:23:50]} {[%emt 00:02:35]} 27. axb4 {[%clk
00:32:58]} {[%emt 00:00:12]} Bd6 {[%clk 00:23:51]} {[%emt 00:00:29]} 28. Kb2
{[%clk 00:32:46]} {[%emt 00:00:42]} Ra7 {[%clk 00:22:51]} {[%emt 00:01:30]} 29.
Ra1 {[%clk 00:32:59]} {[%emt 00:00:18]} Rha8 {[%clk 00:22:56]} {[%emt
00:00:25]} 30. Rxa7+ {[%clk 00:33:16]} {[%emt 00:00:13]} Kxa7 {[%clk 00:22:35]}
{[%emt 00:00:50]} 31. Qd1 {[%clk 00:23:12]} {[%emt 00:10:33]} Kb6 {[%clk
00:21:50]} {[%emt 00:01:16]} 32. Kc2 {[%clk 00:23:22]} {[%emt 00:00:20]} Rg8
{[%clk 00:18:56]} {[%emt 00:03:24]} 33. Qf1 {[%clk 00:22:13]} {[%emt 00:01:39]}
Bg6 {[%clk 00:16:06]} {[%emt 00:03:20]} 34. Kb2 {[%clk 00:16:01]} {[%emt
00:06:43]} Rf8 {[%clk 00:13:13]} {[%emt 00:03:22]} 35. Qe1 {[%clk 00:15:09]}
{[%emt 00:01:22]} Qd7 {[%clk 00:12:14]} {[%emt 00:01:30]} 36. Bd1 {[%clk
00:12:28]} {[%emt 00:03:11]} Ra8 {[%clk 00:09:39]} {[%emt 00:03:04]} 37. Nc1
{[%clk 00:08:54]} {[%emt 00:04:04]} Qa7 {[%clk 00:05:34]} {[%emt 00:04:35]} 38.
Bb3 {[%clk 00:08:08]} {[%emt 00:01:16]} Qa1+ {[%clk 00:04:52]} {[%emt
00:01:13]} 39. Kc2 {[%clk 00:08:30]} {[%emt 00:00:07]} Qa7 {[%clk 00:02:41]}
{[%emt 00:02:42]} 40. Ne2 {[%clk 00:08:37]} {[%emt 00:00:22]} Qd7 {[%clk
00:02:05]} {[%emt 00:01:06]} 41. Kb2 {[%clk 00:05:08]} {[%emt 00:03:59]} Qg4
{[%clk 00:26:46]} {[%emt 00:05:48]} 42. g3 {[%clk 00:35:10]} {[%emt 00:00:29]}
Qd7 {[%clk 00:26:22]} {[%emt 00:00:54]} 43. Bd1 {[%clk 00:34:39]} {[%emt
00:01:00]} Qa7 {[%clk 00:26:12]} {[%emt 00:00:42]} 44. Bb3 {[%clk 00:33:59]}
{[%emt 00:01:10]} Qf7 {[%clk 00:26:22]} {[%emt 00:00:19]} 45. Nc1 {[%clk
00:28:14]} {[%emt 00:06:15]} Bf5 {[%clk 00:22:21]} {[%emt 00:04:30]} 46. Bd1
{[%clk 00:26:44]} {[%emt 00:02:00]} Rh8 {[%clk 00:15:28]} {[%emt 00:07:24]} 47.
Nb3 {[%clk 00:25:40]} {[%emt 00:01:35]} g4 {[%clk 00:11:27]} {[%emt 00:07:54]}
1/2-1/2

[Event "Schack-SM 2023: Veteran-SM 50+"]
[Site "Helsingborg Arena, Mellersta Stenbocksgatan 14, Helsingborg, Sweden"]
[Date "2023.07.08"]
[Round "8.2"]
[White "Petersson, Kjell"]
[Black "Karlsson, Ulf"]
[Result "1/2-1/2"]
[TimeControl "90 minutes for 40 moves + 30 minutes for the rest of games + 30 seconds per move from move one."]
[WhiteTitle "CM"]
[WhiteElo "2061"]
[BlackElo "1968"]

1. d4 {[%clk 01:30:59]} Nf6 {[%clk 01:30:46]} {[%emt 00:00:14]} 2. Bf4 {[%clk
01:31:27]} {[%emt 00:00:02]} d5 {[%clk 01:31:09]} {[%emt 00:00:07]} 3. e3
{[%clk 01:31:53]} {[%emt 00:00:04]} c5 {[%clk 01:31:35]} {[%emt 00:00:04]} 4.
c3 {[%clk 01:32:18]} {[%emt 00:00:05]} Nc6 {[%clk 01:32:00]} {[%emt 00:00:05]}
5. Nd2 {[%clk 01:32:44]} {[%emt 00:00:04]} Bf5 {[%clk 01:32:03]} {[%emt
00:00:27]} 6. Qb3 {[%clk 01:32:54]} {[%emt 00:00:20]} Qc8 {[%clk 01:32:26]}
{[%emt 00:00:06]} 7. c4 {[%clk 01:32:53]} {[%emt 00:00:32]} e6 {[%clk
01:32:31]} {[%emt 00:00:24]} 8. Ngf3 {[%clk 01:30:42]} {[%emt 00:02:42]} cxd4
{[%clk 01:26:48]} {[%emt 00:06:13]} 9. exd4 {[%clk 01:29:00]} {[%emt 00:02:11]}
Be7 {[%clk 01:25:41]} {[%emt 00:01:37]} 10. Be2 {[%clk 01:23:21]} {[%emt
00:06:09]} O-O {[%clk 01:25:38]} {[%emt 00:00:33]} 11. Rc1 {[%clk 01:12:00]}
{[%emt 00:11:51]} Qd7 {[%clk 01:24:09]} {[%emt 00:02:00]} 12. Ne5 {[%clk
01:01:22]} {[%emt 00:11:07]} Nxe5 {[%clk 01:23:01]} {[%emt 00:01:39]} 13. dxe5
{[%clk 01:01:20]} {[%emt 00:00:32]} dxc4 {[%clk 01:19:58]} {[%emt 00:03:33]} 14.
Bxc4 {[%clk 00:52:48]} {[%emt 00:09:03]} Nd5 {[%clk 01:16:41]} {[%emt
00:03:46]} 15. Bxd5 {[%clk 00:51:22]} {[%emt 00:01:56]} exd5 {[%clk 01:17:03]}
{[%emt 00:00:08]} 16. O-O {[%clk 00:50:37]} {[%emt 00:01:15]} Rac8 {[%clk
01:15:13]} {[%emt 00:02:20]} 17. h3 {[%clk 00:47:35]} {[%emt 00:03:32]} Rxc1
{[%clk 01:09:13]} {[%emt 00:06:29]} 18. Rxc1 {[%clk 00:48:04]} {[%emt
00:00:02]} Rc8 {[%clk 01:09:34]} {[%emt 00:00:09]} 19. Rxc8+ {[%clk 00:45:34]}
{[%emt 00:03:00]} Qxc8 {[%clk 01:10:02]} {[%emt 00:00:02]} 20. Nf3 {[%clk
00:43:22]} {[%emt 00:02:42]} Be6 {[%clk 01:04:48]} {[%emt 00:05:43]} 1/2-1/2